fUSD/lending_fUSD_20241121
["ID","MTS","AMOUNT","RATE_DAILY","PERIOD"]
[342908503,1732201840156,-30082.89801518,0.00041,30]
[342908504,1732201840166,-550.0,0.00041,14]
[342908505,1732201840178,-153.0,0.00041067,2]
[342908506,1732201840189,-204.0,0.0004108,30]
[342908507,1732201840200,-201.0,0.0004108,30]
[342908508,1732201840216,-311.0,0.0004108,2]
[342908509,1732201840227,-500.0,0.00041095,18]
[342908510,1732201840243,-500.0,0.00041095,18]
[342908511,1732201840257,-500.0,0.00041095,18]
[342908512,1732201840268,-500.0,0.00041095,18]
[342908513,1732201840279,-500.0,0.00041095,18]
[342908514,1732201840290,-473.69663329,0.00041095,18]
[342908515,1732201840301,-500.0,0.00041095,18]
[342908516,1732201840311,-500.0,0.00041095,18]
[342908517,1732201840322,-500.0,0.00041095,18]
[342908518,1732201840333,-500.0,0.00041095,18]
[342908519,1732201840344,-560.45,0.00041095,18]
[342908520,1732201840356,-500.0,0.00041095,18]
[342908521,1732201840366,-500.0,0.00041095,18]
[342908522,1732201840377,-500.0,0.00041095,18]
[342908523,1732201840388,-406.53623682,0.00041095,18]
[342908524,1732201840403,-500.0,0.00041095,18]
[342908525,1732201840416,-500.0,0.00041095,18]
[342908526,1732201840426,-500.0,0.00041095,18]
[342908527,1732201840438,-500.0,0.00041095,18]
[342908528,1732201840451,-500.0,0.00041095,18]
[342908529,1732201840462,-500.0,0.00041095,18]
[342908530,1732201840472,-500.0,0.00041095,18]
[342908531,1732201840483,-500.0,0.00041095,18]
[342908532,1732201840494,-500.0,0.00041095,18]
[342908533,1732201840505,-942.74,0.00041095,18]
[342908534,1732201840517,-539.03,0.00041095,18]
[342908535,1732201840528,-500.0,0.00041095,18]
[342908536,1732201840539,-500.0,0.00041095,18]
[342908537,1732201840550,-500.0,0.00041095,18]
[342908538,1732201840561,-500.0,0.00041095,18]
[342908539,1732201840572,-500.0,0.00041095,18]
[342908540,1732201840583,-500.0,0.00041095,18]
[342908541,1732201840594,-500.0,0.00041095,18]
[342908542,1732201840605,-500.0,0.00041095,18]
[342908543,1732201840616,-503.28074702,0.00041095,18]
[342908544,1732201840626,-500.0,0.00041095,18]
[342908545,1732201840636,-500.0,0.00041095,18]
[342908546,1732201840646,-500.0,0.00041095,18]
[342908547,1732201840656,-500.0,0.00041095,18]
[342908548,1732201840666,-500.0,0.00041095,18]
[342908549,1732201840677,-500.0,0.00041095,18]
[342908550,1732201840688,-500.0,0.00041095,18]
[342908551,1732201840699,-500.0,0.00041095,18]
[342908552,1732201840719,-500.0,0.00041095,18]
[342908553,1732201840730,-500.0,0.00041095,18]
[342908554,1732201840741,-550.88,0.00041095,18]
[342908555,1732201840754,-516.4,0.00041095,18]
[342908556,1732201840765,-500.0,0.00041095,18]
[342908557,1732201840776,-500.0,0.00041095,18]
[342908558,1732201840787,-573.61,0.00041095,18]
[342908559,1732201840798,-500.0,0.00041095,18]
[342908560,1732201840809,-500.0,0.00041095,18]
[342908561,1732201840823,-714.0,0.00041095,18]
[342908562,1732201840834,-500.0,0.00041095,18]
[342908563,1732201840844,-500.0,0.00041095,18]
[342908564,1732201840855,-500.0,0.00041095,18]
[342908565,1732201840867,-500.0,0.00041095,18]
[342908566,1732201840877,-756.47,0.00041095,18]
[342908567,1732201840888,-500.0,0.00041095,18]
[342908568,1732201840899,-500.0,0.00041095,18]
[342908569,1732201840910,-500.0,0.00041095,18]
[342908570,1732201840921,-500.0,0.00041095,18]
[342908571,1732201840932,-500.0,0.00041095,18]
[342908572,1732201840942,-500.0,0.00041095,18]
[342908573,1732201840954,-500.0,0.00041095,18]
[342908574,1732201840965,-500.0,0.00041095,18]
[342908575,1732201840975,-500.0,0.00041095,18]
[342908576,1732201840986,-500.0,0.00041095,18]
[342908577,1732201840997,-500.0,0.00041095,18]
[342908578,1732201841007,-500.0,0.00041095,18]
[342908579,1732201841018,-500.0,0.00041095,18]
[342908580,1732201841028,-500.0,0.00041095,18]
[342908581,1732201841038,-500.0,0.00041095,18]
[342908582,1732201841047,-500.0,0.00041095,18]
[342908583,1732201841057,-500.0,0.00041095,18]
[342908584,1732201841068,-500.0,0.00041095,18]
[342908585,1732201841078,-500.0,0.00041095,18]
[342908586,1732201841088,-620.57,0.00041095,18]
[342908587,1732201841098,-500.0,0.00041095,18]
[342908588,1732201841108,-500.0,0.00041095,18]
[342908589,1732201841277,-500.0,0.00041095,18]
[342908590,1732201841287,-595.3,0.00041095,18]
[342908591,1732201841298,-487.99713238,0.00041095,18]
[342908592,1732201841308,-500.0,0.00041095,18]
[342908593,1732201841318,-500.0,0.00041095,18]
[342908594,1732201841328,-500.0,0.00041095,18]
[342908595,1732201841338,-500.0,0.00041095,18]
[342908596,1732201841348,-500.0,0.00041095,18]
[342908597,1732201841358,-500.0,0.00041095,18]
[342908598,1732201841368,-500.0,0.00041095,18]
[342908599,1732201841378,-500.0,0.00041095,18]
[342908600,1732201841388,-500.0,0.00041095,18]
[342908601,1732201841399,-500.0,0.00041095,18]
[342908602,1732201841411,-500.0,0.00041095,18]
[342908603,1732201841421,-500.0,0.00041095,18]
[342908604,1732201841430,-500.0,0.00041095,18]
[342908605,1732201841440,-500.0,0.00041095,18]
[342908606,1732201841452,-500.0,0.00041095,18]
[342908607,1732201841461,-500.0,0.00041095,18]
[342908608,1732201841471,-500.0,0.00041095,18]
[342908609,1732201841482,-500.0,0.00041095,18]
[342908610,1732201841492,-500.0,0.00041095,18]
[342908611,1732201841503,-500.0,0.00041095,18]
[342908612,1732201841513,-500.0,0.00041095,18]
[342908613,1732201841524,-500.0,0.00041095,18]
[342908614,1732201841534,-500.0,0.00041095,18]
[342908615,1732201841544,-500.0,0.00041095,18]
[342908616,1732201841554,-857.82,0.00041095,18]
[342908617,1732201841564,-500.0,0.00041095,18]
[342908618,1732201841574,-500.0,0.00041095,18]
[342908619,1732201841584,-500.0,0.00041095,18]
[342908620,1732201841595,-939.45,0.00041095,18]
[342908621,1732201841605,-500.0,0.00041095,18]
[342908622,1732201841615,-539.73,0.00041095,18]
[342908623,1732201841626,-500.0,0.00041095,18]
[342908624,1732201841637,-500.0,0.00041095,18]
[342908625,1732201841648,-500.0,0.00041095,18]
[342908626,1732201841658,-500.0,0.00041095,18]
[342908627,1732201841668,-500.0,0.00041095,18]
[342908628,1732201841678,-500.0,0.00041095,18]
[342908629,1732201841687,-500.0,0.00041095,18]
[342908630,1732201841697,-500.0,0.00041095,18]
[342908631,1732201841708,-500.0,0.00041095,18]
[342908632,1732201841721,-882.51,0.00041095,18]
[342908633,1732201841732,-519.85,0.00041095,18]
[342908634,1732201841751,-500.0,0.00041095,18]
[342908635,1732201841762,-924.17,0.00041095,18]
[342908636,1732201841772,-608.55,0.00041095,18]
[342908637,1732201841782,-500.0,0.00041095,18]
[342908638,1732201841792,-430.35969615,0.00041095,18]
[342908639,1732201841802,-500.0,0.00041095,18]
[342908640,1732201841812,-578.68,0.00041095,18]
[342908641,1732201841822,-536.54,0.00041095,18]
[342908642,1732201841831,-500.0,0.00041095,18]
[342908643,1732201841842,-712.5,0.00041095,18]
[342908644,1732201841851,-500.0,0.00041095,18]
[342908645,1732201841860,-500.0,0.00041095,18]
[342908646,1732201841869,-500.0,0.00041095,18]
[342908647,1732201841879,-1272.66,0.00041095,18]
[342908648,1732201841888,-500.0,0.00041095,18]
[342908649,1732201841898,-500.0,0.00041095,18]
[342908650,1732201841909,-1194.13,0.00041095,18]
[342908651,1732201841919,-500.0,0.00041095,18]
[342908652,1732201841929,-500.0,0.00041095,18]
[342908653,1732201841938,-500.0,0.00041095,18]
[342908654,1732201841948,-500.0,0.00041095,18]
[342908655,1732201841961,-500.0,0.00041095,18]
[342908656,1732201841971,-500.0,0.00041095,18]
[342908657,1732201841981,-500.0,0.00041095,18]
[342908658,1732201841990,-500.0,0.00041095,18]
[342908659,1732201842001,-1250.23,0.00041095,18]
[342908660,1732201842011,-707.18,0.00041095,18]
[342908661,1732201842021,-500.0,0.00041095,18]
[342908662,1732201842031,-500.0,0.00041095,18]
[342908663,1732201842041,-724.55,0.00041095,18]
[342908664,1732201842050,-733.75,0.00041095,18]
[342908665,1732201842061,-491.39473794,0.00041095,18]
[342908666,1732201842070,-500.0,0.00041095,18]
[342908667,1732201842080,-553.84,0.00041095,18]
[342908668,1732201842090,-500.0,0.00041095,18]
[342908669,1732201842100,-549.8640644,0.00041095,18]
[342908670,1732201842110,-533.35,0.00041095,18]
[342908671,1732201842120,-500.0,0.00041095,18]
[342908672,1732201842129,-500.0,0.00041095,18]
[342908673,1732201842139,-500.0,0.00041095,18]
[342908674,1732201842148,-500.0,0.00041095,18]
[342908675,1732201842158,-500.0,0.00041095,18]
[342908676,1732201842167,-500.0,0.00041095,18]
[342908677,1732201842176,-500.0,0.00041095,18]
[342908678,1732201842186,-500.0,0.00041095,18]
[342908679,1732201842195,-500.0,0.00041095,18]
[342908680,1732201842205,-500.0,0.00041095,18]
[342908681,1732201842219,-500.0,0.00041095,18]
[342908682,1732201842228,-551.09,0.00041095,18]
[342908683,1732201842237,-500.0,0.00041095,18]
[342908684,1732201842250,-777.4,0.00041095,18]
[342908685,1732201842259,-500.0,0.00041095,18]
[342908686,1732201842268,-500.0,0.00041095,18]
[342908687,1732201842278,-1000.0,0.00041095,18]
[342908688,1732201842288,-352.62344578,0.00041095,18]
[342908689,1732201842298,-500.0,0.00041095,18]
[342908690,1732201842308,-500.0,0.00041095,18]
[342908691,1732201842318,-515.15,0.00041095,18]
[342908692,1732201842328,-500.0,0.00041095,18]
[342908693,1732201842338,-500.0,0.00041095,18]
[342908694,1732201842348,-500.0,0.00041095,18]
[342908695,1732201842358,-500.0,0.00041095,18]
[342908696,1732201842368,-500.0,0.00041095,18]
[342908697,1732201842379,-500.0,0.00041095,18]
[342908698,1732201842389,-500.0,0.00041095,18]
[342908699,1732201842399,-500.0,0.00041095,18]
[342908700,1732201842411,-500.0,0.00041095,18]
[342908701,1732201842420,-202.76674444,0.00041095,18]
[342908702,1732201842441,-297.23325556,0.00041095,18]
[342908703,1732201842456,-500.0,0.00041095,18]
[342908704,1732201842470,-500.0,0.00041095,18]
[342908705,1732201842481,-500.0,0.00041095,18]
[342908706,1732201842492,-500.0,0.00041095,18]
[342908707,1732201842502,-500.0,0.00041095,18]
[342908708,1732201842512,-614.61,0.00041095,18]
[342908709,1732201842522,-500.0,0.00041095,18]
[342908710,1732201842533,-500.0,0.00041095,18]
[342908711,1732201842543,-500.0,0.00041095,18]
[342908712,1732201842552,-500.0,0.00041095,18]
[342908713,1732201842562,-395.95874444,0.00041095,18]
[342908714,1732201842575,-538.43125556,0.00041095,18]
[342908715,1732201842586,-500.0,0.00041095,18]
[342908716,1732201842596,-937.55,0.00041095,18]
[342908717,1732201842607,-500.0,0.00041095,18]
[342908718,1732201842617,-500.0,0.00041095,18]
[342908719,1732201842627,-683.91,0.00041095,18]
[342908720,1732201842637,-643.89,0.00041095,18]
[342908721,1732201842647,-499.26488487,0.00041095,18]
[342908722,1732201842657,-500.0,0.00041095,18]
[342908723,1732201842667,-500.0,0.00041095,18]
[342908724,1732201842678,-500.0,0.00041095,18]
[342908725,1732201842689,-631.46,0.00041095,18]
[342908726,1732201842699,-244.11829787,0.00041095,18]
[342908727,1732201842712,-524.11,0.00041095,18]
[342908728,1732201842722,-500.0,0.00041095,18]
[342908729,1732201842732,-478.22654811,0.00041095,18]
[342908730,1732201842745,-127.03651786,0.00041095,18]
[342908731,1732201842763,-485.22348214,0.00041095,18]
[342908732,1732201842774,-351.58777418,0.00041095,18]
[342908733,1732201842784,-500.0,0.00041095,18]
[342908734,1732201842795,-269.43266368,0.00041095,18]
[342908736,1732201842838,-230.56733632,0.00041095,18]
[342908737,1732201842848,-416.32602768,0.00041095,18]
[342908738,1732201842862,-83.67397232,0.00041095,18]
[342908739,1732201842872,-640.72,0.00041095,18]
[342908740,1732201842882,-728.38602768,0.00041095,18]
[342908746,1732201843479,-122.38397232,0.00041095,18]
[342908747,1732201843493,-500.0,0.00041095,7]
[342908748,1732201843504,-69.73496748,0.00041095,18]
[342908749,1732201843519,-430.26503252,0.00041095,18]
[342908750,1732201843530,-500.0,0.00041095,18]
[342908751,1732201843541,-391.26120728,0.00041095,18]
[342908752,1732201843556,-108.73879272,0.00041095,18]
[342908753,1732201843566,-500.0,0.00041095,18]
[342908754,1732201843577,-500.0,0.00041095,18]
[342908755,1732201843590,-500.0,0.00041095,18]
[342908756,1732201843601,-500.0,0.00041095,18]
[342908757,1732201843612,-500.0,0.00041095,18]
[342908758,1732201843624,-500.0,0.00041095,18]
[342908759,1732201843635,-284.43304447,0.00041095,18]
[342908760,1732201843649,-215.56695553,0.00041095,18]
[342908761,1732201843661,-640.26,0.00041095,18]
[342908762,1732201843672,-801.49,0.00041095,18]
[342908763,1732201843684,-660.28,0.00041095,18]
[342908764,1732201843696,-500.0,0.00041095,18]
[342908765,1732201843708,-792.34,0.00041095,18]
[342908766,1732201843720,-685.17,0.00041095,60]
[342908767,1732201843731,-500.0,0.00041095,18]
[342908768,1732201843743,-500.0,0.00041095,18]
[342908769,1732201843754,-500.0,0.00041095,18]
[342908770,1732201843766,-500.0,0.00041095,18]
[342908771,1732201843777,-500.0,0.00041095,18]
[342908772,1732201843788,-542.71,0.00041095,18]
[342908773,1732201843799,-500.0,0.00041095,18]
[342908774,1732201843810,-500.0,0.00041095,18]
[342908775,1732201843821,-957.27,0.00041095,18]
[342908776,1732201843832,-500.0,0.00041095,18]
[342908777,1732201843843,-622.32,0.00041095,18]
[342908783,1732201844186,-500.0,0.00041095,18]
[342908784,1732201844197,-500.0,0.00041095,18]
[342908785,1732201844208,-864.55,0.00041095,18]
[342908786,1732201844219,-500.0,0.00041095,18]
[342908787,1732201844229,-500.0,0.00041095,18]
[342908788,1732201844239,-500.0,0.00041095,18]
[342908789,1732201844248,-269.85437784,0.00041095,18]
[342908790,1732201844258,-973.3,0.00041095,18]
[342908791,1732201844268,-500.0,0.00041095,18]
[342908792,1732201844278,-500.0,0.00041095,18]
[342908793,1732201844288,-500.0,0.00041095,18]
[342908794,1732201844299,-500.0,0.00041095,18]
[342908795,1732201844310,-500.0,0.00041095,18]
[342908796,1732201844322,-500.0,0.00041095,18]
[342908797,1732201844332,-500.0,0.00041095,18]
[342908798,1732201844343,-500.0,0.00041095,18]
[342908799,1732201844354,-500.0,0.00041095,18]
[342908800,1732201844365,-500.0,0.00041095,18]
[342908801,1732201844376,-266.07977317,0.00041095,18]
[342908802,1732201844386,-500.0,0.00041095,18]
[342908803,1732201844397,-500.0,0.00041095,18]
[342908804,1732201844414,-500.0,0.00041095,18]
[342908805,1732201844425,-911.18,0.00041095,18]
[342908806,1732201844436,-500.0,0.00041095,18]
[342908807,1732201844449,-675.39,0.00041095,18]
[342908808,1732201844464,-908.71,0.00041095,18]
[342908809,1732201844475,-500.0,0.00041095,18]
[342908810,1732201844486,-500.0,0.00041095,18]
[342908811,1732201844498,-906.19,0.00041095,18]
[342908812,1732201844509,-500.0,0.00041095,18]
[342908813,1732201844519,-500.0,0.00041095,18]
[342908814,1732201844530,-500.0,0.00041095,18]
[342908815,1732201844540,-500.0,0.00041095,18]
[342908816,1732201844550,-500.0,0.00041095,18]
[342908817,1732201844561,-528.4,0.00041095,18]
[342908818,1732201844573,-500.0,0.00041095,18]
[342908819,1732201844583,-500.0,0.00041095,18]
[342908820,1732201844593,-514.21,0.00041095,18]
[342908821,1732201844603,-500.0,0.00041095,18]
[342908822,1732201844613,-161.14689454,0.00041095,18]
[342908823,1732201844623,-532.67,0.00041095,18]
[342908824,1732201844633,-501.32,0.00041095,18]
[342908825,1732201844644,-500.0,0.00041095,18]
[342908826,1732201844656,-500.0,0.00041095,18]
[342908827,1732201844666,-1135.76,0.00041095,18]
[342908828,1732201844678,-500.0,0.00041095,18]
[342908829,1732201844688,-73.52147508,0.00041095,18]
[342908831,1732201844704,-426.47852492,0.00041095,18]
[342908834,1732201844719,-500.0,0.00041095,18]
[342908837,1732201844730,-630.18,0.00041095,18]
[342908839,1732201844741,-606.79,0.00041095,18]
[342908842,1732201844752,-500.0,0.00041095,18]
[342908845,1732201844763,-500.0,0.00041095,18]
[342908846,1732201844775,-500.0,0.00041095,18]
[342908847,1732201844787,-881.68,0.00041095,18]
[342908848,1732201844798,-151.0,0.00041095,14]
[342908849,1732201844811,-500.0,0.00041095,18]
[342908850,1732201844823,-500.0,0.00041095,18]
[342908851,1732201844834,-228.65530204,0.00041095,18]
[342908852,1732201844845,-500.0,0.00041095,18]
[342908853,1732201844855,-500.0,0.00041095,18]
[342908854,1732201844868,-730.01,0.00041095,18]
[342908855,1732201844879,-500.0,0.00041095,18]
[342908856,1732201844890,-500.0,0.00041095,18]
[342908857,1732201844902,-200.0,0.00041095,7]
[342908858,1732201844913,-500.0,0.00041095,18]
[342908859,1732201844924,-500.0,0.00041095,18]
[342908860,1732201844934,-500.0,0.00041095,18]
[342908861,1732201844945,-122.18617319,0.00041095,18]
[342908862,1732201844962,-377.81382681,0.00041095,18]
[342908863,1732201844973,-500.0,0.00041095,18]
[342908864,1732201844984,-640.65,0.00041095,18]
[342908865,1732201844996,-500.0,0.00041095,18]
[342908866,1732201845007,-500.0,0.00041095,18]
[342908867,1732201845017,-562.63,0.00041095,18]
[342908868,1732201845028,-500.0,0.00041095,18]
[342908869,1732201845039,-500.0,0.00041095,18]
[342908870,1732201845050,-558.48,0.00041095,18]
[342908871,1732201845061,-500.0,0.00041095,18]
[342908872,1732201845071,-500.0,0.00041095,18]
[342908873,1732201845082,-703.5,0.00041095,18]
[342908874,1732201845092,-500.0,0.00041095,18]
[342908875,1732201845102,-500.0,0.00041095,18]
[342908876,1732201845111,-500.0,0.00041095,18]
[342908877,1732201845121,-500.0,0.00041095,18]
[342908878,1732201845131,-112.69802229,0.00041095,18]
[342908879,1732201845241,-387.30197771,0.00041095,18]
[342908880,1732201845254,-1146.51,0.00041095,18]
[342908881,1732201845265,-561.76,0.00041095,18]
[342908882,1732201845277,-500.0,0.00041095,18]
[342908883,1732201845286,-500.0,0.00041095,18]
[342908884,1732201845296,-500.0,0.00041095,18]
[342908885,1732201845306,-500.0,0.00041095,18]
[342908886,1732201845315,-336.57042091,0.00041095,18]
[342908887,1732201845331,-371.16957909,0.00041095,18]
[342908888,1732201845340,-500.0,0.00041095,18]
[342908889,1732201845350,-500.0,0.00041095,18]
[342908890,1732201845359,-567.17577256,0.00041095,18]
[342908891,1732201845368,-1815.74,0.00041095,18]
[342908892,1732201845378,-500.0,0.00041095,18]
[342908893,1732201845387,-500.0,0.00041095,18]
[342908894,1732201845396,-702.4,0.00041095,18]
[342908895,1732201845410,-500.0,0.00041095,18]
[342908896,1732201845419,-4.92700008,0.00041095,18]
[342908905,1732201845859,-500.0,0.000397,5]
[342908907,1732201845869,-495.07299992,0.00041095,18]
[342908909,1732201845879,-500.0,0.00041095,18]
[342908911,1732201845889,-427.70993322,0.00041095,18]
[342908913,1732201845900,-72.29006678,0.00041095,18]
[342908915,1732201845910,-516.92548611,0.00041095,18]
[342908917,1732201845919,-500.0,0.00041095,18]
[342908919,1732201845929,-500.0,0.00041095,18]
[342908922,1732201845939,-500.0,0.00041095,18]
[342908925,1732201845949,-500.0,0.00041095,18]
[342908927,1732201845960,-500.0,0.00041095,18]
[342908930,1732201845970,-500.0,0.00041095,18]
[342908934,1732201845980,-500.0,0.00041095,18]
[342908938,1732201845990,-500.0,0.00041095,18]
[342908941,1732201845999,-500.0,0.00041095,18]
[342908944,1732201846009,-500.0,0.00041095,18]
[342908947,1732201846019,-500.0,0.00041095,18]
[342908950,1732201846029,-500.0,0.00041095,18]
[342908953,1732201846038,-500.0,0.00041095,18]
[342908956,1732201846048,-500.0,0.00041095,18]
[342908959,1732201846058,-500.0,0.00041095,18]
[342908962,1732201846068,-500.0,0.00041095,18]
[342908964,1732201846078,-500.0,0.00041095,18]
[342908966,1732201846088,-978.16,0.00041095,18]
[342908968,1732201846097,-500.0,0.00041095,18]
[342908969,1732201846108,-500.0,0.00041095,18]
[342908970,1732201846118,-500.0,0.00041095,18]
[342908971,1732201846127,-500.0,0.00041095,18]
[342908972,1732201846137,-500.0,0.00041095,18]
[342908973,1732201846150,-500.0,0.00041095,18]
[342908974,1732201846161,-500.0,0.00041095,18]
[342908975,1732201846171,-1087.74,0.00041095,18]
[342908976,1732201846181,-1005.16,0.00041095,18]
[342908977,1732201846192,-500.0,0.00041095,18]
[342908978,1732201846203,-500.0,0.00041095,18]
[342908979,1732201846218,-500.0,0.00041095,18]
[342908980,1732201846230,-500.0,0.00041095,18]
[342908981,1732201846240,-504.43,0.00041095,18]
[342908982,1732201846252,-300.0,0.00041095,18]
[342908983,1732201846262,-500.0,0.00041095,18]
[342908984,1732201846272,-500.0,0.00041095,18]
[342908985,1732201846290,-2653.75,0.00041095,18]
[342908986,1732201846300,-1109.7,0.00041095,18]
[342908987,1732201846311,-500.0,0.00041095,18]
[342908988,1732201846320,-500.0,0.00041095,18]
[342908989,1732201846330,-500.0,0.00041095,18]
[342908990,1732201846342,-500.0,0.00041095,18]
[342908991,1732201846352,-501.07,0.00041095,18]
[342908992,1732201846366,-500.0,0.00041095,18]
[342908993,1732201846376,-500.0,0.00041095,18]
[342908994,1732201846386,-630.56,0.00041095,18]
[342908995,1732201846397,-899.12,0.00041095,18]
[342908996,1732201846411,-500.0,0.00041095,18]
[342908997,1732201846421,-500.0,0.00041095,18]
[342908998,1732201846431,-1008.54,0.00041095,18]
[342908999,1732201846441,-500.0,0.00041095,18]
[342909000,1732201846455,-816.14,0.00041095,18]
[342909001,1732201846469,-500.0,0.00041095,18]
[342909002,1732201846481,-500.0,0.00041095,18]
[342909003,1732201846494,-500.0,0.00041095,18]
[342909004,1732201846504,-574.68,0.00041095,18]
[342909005,1732201846515,-1238.59,0.00041095,18]
[342909006,1732201846526,-500.0,0.00041095,18]
[342909007,1732201846537,-705.85,0.00041095,18]
[342909008,1732201846547,-399.75555326,0.00041095,18]
[342909009,1732201846557,-500.0,0.00041095,18]
[342909010,1732201846567,-500.0,0.00041095,18]
[342909011,1732201846577,-576.33,0.00041095,18]
[342909012,1732201846587,-1937.42,0.00041095,18]
[342909013,1732201846597,-642.67,0.00041095,18]
[342909014,1732201846607,-500.0,0.00041095,18]
[342909015,1732201846617,-500.0,0.00041095,18]
[342909016,1732201846627,-500.0,0.00041095,18]
[342909017,1732201846636,-500.0,0.00041095,18]
[342909018,1732201846647,-500.0,0.00041095,18]
[342909019,1732201846657,-500.0,0.00041095,18]
[342909020,1732201846667,-500.0,0.00041095,18]
[342909021,1732201846677,-897.28,0.00041095,18]
[342909022,1732201846687,-500.0,0.00041095,18]
[342909023,1732201846696,-500.0,0.00041095,18]
[342909024,1732201846706,-1875.63,0.00041095,18]
[342909025,1732201846721,-500.0,0.00041095,18]
[342909026,1732201846731,-500.0,0.00041095,18]
[342909027,1732201846744,-500.0,0.00041095,18]
[342909036,1732201846850,-500.0,0.00041095,18]
[342909038,1732201846860,-500.0,0.00041095,18]
[342909039,1732201846870,-528.49,0.00041095,18]
[342909040,1732201846880,-500.0,0.00041095,18]
[342909041,1732201846895,-500.0,0.00041095,18]
[342909042,1732201846906,-500.0,0.00041095,18]
[342909043,1732201846916,-658.67,0.00041095,18]
[342909044,1732201846927,-500.0,0.00041095,18]
[342909045,1732201846938,-1131.85,0.00041095,18]
[342909046,1732201846948,-500.0,0.00041095,18]
[342909047,1732201846962,-500.0,0.00041095,18]
[342909048,1732201846972,-500.0,0.00041095,18]
[342909049,1732201846983,-11862.99,0.00041095,18]
[342909050,1732201846993,-2458.69,0.00041095,18]
[342909051,1732201847003,-500.0,0.00041095,18]
[342909052,1732201847014,-1321.74,0.00041095,18]
[342909053,1732201847028,-500.0,0.00041095,18]
[342909054,1732201847039,-500.0,0.00041095,18]
[342909055,1732201847049,-500.0,0.00041095,18]
[342909056,1732201847060,-500.0,0.00041095,18]
[342909057,1732201847070,-500.0,0.00041095,18]
[342909058,1732201847081,-1027.31,0.00041095,18]
[342909059,1732201847091,-4842.34,0.00041095,18]
[342909060,1732201847102,-500.0,0.00041095,18]
[342909061,1732201847112,-500.0,0.00041095,18]
[342909062,1732201847122,-683.97,0.00041095,18]
[342909063,1732201847133,-500.0,0.00041095,18]
[342909064,1732201847144,-672.82,0.00041095,18]
[342909065,1732201847155,-500.0,0.00041095,18]
[342909066,1732201847166,-500.0,0.00041095,18]
[342909067,1732201847177,-9938.11,0.00041095,2]
[342909068,1732201847189,-515.1489616,0.00041095,18]
[342909069,1732201847202,-500.0,0.00041095,18]
[342909070,1732201847219,-500.0,0.00041095,18]
[342909071,1732201847230,-1387.58,0.00041095,18]
[342909072,1732201847241,-500.0,0.00041095,18]
[342909073,1732201847251,-500.0,0.00041095,18]
[342909074,1732201847262,-500.0,0.00041095,18]
[342909075,1732201847272,-500.0,0.00041095,18]
[342909076,1732201847283,-500.0,0.00041095,18]
[342909077,1732201847293,-500.0,0.00041095,18]
[342909078,1732201847303,-500.0,0.00041095,18]
[342909079,1732201847313,-500.0,0.00041095,18]